[Event "*** Titled Tuesday 3|2 Blitz"]
[Site "Chess.com"]
[Date "2015.11.03"]
[Round "4"]
[White "sorito"]
[Black "1random"]
[Result "1-0"]
[WhiteElo "2086"]
[BlackElo "1913"]
[TimeControl "180+2"]
[EndTime "11:50:39 PST"]
[Termination "sorito won by checkmate"]

1. d4 {[%clk 0:03:01.9]} 1... Nf6 {[%clk 0:02:57.9]} 2. Nf3 {[%clk 0:03:01.8]}
2... d5 {[%clk 0:02:58.8]} 3. c4 {[%clk 0:03:01.6]} 3... e6 {[%clk 0:02:59.8]}
4. g3 {[%clk 0:03:02.5]} 4... Be7 {[%clk 0:03:00.3]} 5. Bg2 {[%clk 0:03:03.9]}
5... O-O {[%clk 0:03:02]} 6. O-O {[%clk 0:03:05.3]} 6... dxc4 {[%clk 0:03:03.7]}
7. Qc2 {[%clk 0:03:06.6]} 7... a6 {[%clk 0:03:05.1]} 8. Qxc4 {[%clk 0:03:07.9]}
8... b5 {[%clk 0:03:06.5]} 9. Qc2 {[%clk 0:03:09.2]} 9... Bb7 {[%clk 0:03:08.2]}
10. Bd2 {[%clk 0:03:10.7]} 10... Be4 {[%clk 0:03:08.3]} 11. Qc1 {[%clk 0:03:12]}
11... Bb7 {[%clk 0:03:10]} 12. Ba5 {[%clk 0:03:13]} 12... Nc6 {[%clk 0:03:07.4]}
13. Be1 {[%clk 0:03:08.2]} 13... Nxd4 {[%clk 0:02:28.6]} 14. Nxd4 {[%clk
0:03:09.1]} 14... Bxg2 {[%clk 0:02:29.4]} 15. Kxg2 {[%clk 0:03:03.6]} 15... Qxd4
{[%clk 0:02:29.5]} 16. Qxc7 {[%clk 0:03:04.8]} 16... Bd6 {[%clk 0:02:15.3]} 17.
Qc3 {[%clk 0:03:02.7]} 17... Qe4+ {[%clk 0:02:13]} 18. Qf3 {[%clk 0:02:59.4]}
18... Qxf3+ {[%clk 0:02:08]} 19. Kxf3 {[%clk 0:02:59.3]} 19... Rac8 {[%clk
0:02:09.6]} 20. Nc3 {[%clk 0:02:54.5]} 20... b4 {[%clk 0:02:05.8]} 21. Na4
{[%clk 0:02:51.9]} 21... Rc2 {[%clk 0:02:05.6]} 22. Rd1 {[%clk 0:02:52.4]} 22...
Be7 {[%clk 0:01:58.2]} 23. Bd2 {[%clk 0:02:53.7]} 23... Nd5 {[%clk 0:01:54.3]}
24. e4 {[%clk 0:02:54.7]} 24... Nf6 {[%clk 0:01:40.9]} 25. Be3 {[%clk
0:02:54.9]} 25... Rfc8 {[%clk 0:01:41.3]} 26. Rd3 {[%clk 0:02:43.2]} 26... h5
{[%clk 0:01:41.1]} 27. h3 {[%clk 0:02:38.5]} 27... R8c4 {[%clk 0:01:39.6]} 28.
Rd4 {[%clk 0:02:29.2]} 28... Rxd4 {[%clk 0:01:08.5]} 29. Bxd4 {[%clk 0:02:29.7]}
29... Nd7 {[%clk 0:01:07.4]} 30. Rd1 {[%clk 0:02:29.5]} 30... Bf6 {[%clk
0:01:07.8]} 31. Bxf6 {[%clk 0:02:29.6]} 31... Nxf6 {[%clk 0:01:09.7]} 32. Rd4
{[%clk 0:02:23.4]} 32... a5 {[%clk 0:01:07.7]} 33. Rd8+ {[%clk 0:02:24.3]} 33...
Kh7 {[%clk 0:01:08.6]} 34. Ra8 {[%clk 0:02:24.5]} 34... Rc4 {[%clk 0:01:06.3]}
35. Rxa5 {[%clk 0:02:20.7]} 35... Rxe4 {[%clk 0:01:07.1]} 36. Rxh5+ {[%clk
0:02:20.7]} 36... Kg6 {[%clk 0:01:03.2]} 37. Rb5 {[%clk 0:02:21.3]} 37... Rc4
{[%clk 0:01:00.9]} 38. Nb6 {[%clk 0:02:21.5]} 38... Rd4 {[%clk 0:00:25]} 39. g4
{[%clk 0:02:11.6]} 39... Nd5 {[%clk 0:00:25]} 40. Nxd5 {[%clk 0:02:11.9]} 40...
exd5 {[%clk 0:00:26.9]} 41. Ke3 {[%clk 0:02:11.6]} 41... Re4+ {[%clk 0:00:28]}
42. Kd3 {[%clk 0:02:09.8]} 42... Rf4 {[%clk 0:00:29.3]} 43. Ke3 {[%clk
0:02:04.4]} 43... Re4+ {[%clk 0:00:30.6]} 44. Kf3 {[%clk 0:02:05.9]} 44... Rd4
{[%clk 0:00:31.8]} 45. h4 {[%clk 0:02:04.8]} 45... Kf6 {[%clk 0:00:32.5]} 46.
Rb6+ {[%clk 0:02:05.6]} 46... Ke5 {[%clk 0:00:33.2]} 47. g5 {[%clk 0:02:04.7]}
47... Rxh4 {[%clk 0:00:30.1]} 48. Rb7 {[%clk 0:02:05.5]} 48... Ke6 {[%clk
0:00:24.9]} 49. Ke3 {[%clk 0:01:53]} 49... Re4+ {[%clk 0:00:24.4]} 50. Kf3
{[%clk 0:01:52.8]} 50... Rc4 {[%clk 0:00:24.6]} 51. Kg3 {[%clk 0:01:50.4]} 51...
d4 {[%clk 0:00:18.4]} 52. Kf4 {[%clk 0:01:49.1]} 52... d3+ {[%clk 0:00:10.9]}
53. Ke3 {[%clk 0:01:48.8]} 53... Rd4 {[%clk 0:00:07.9]} 54. Kd2 {[%clk
0:01:38.5]} 54... f6 {[%clk 0:00:05.5]} 55. g6 {[%clk 0:01:38.8]} 55... f5
{[%clk 0:00:05]} 56. Rxg7 {[%clk 0:01:39.8]} 56... Kf6 {[%clk 0:00:06.6]} 57.
Rg8 {[%clk 0:01:40.4]} 57... Rd7 {[%clk 0:00:07.1]} 58. f4 {[%clk 0:01:40.6]}
58... Rd4 {[%clk 0:00:07.4]} 59. g7 {[%clk 0:01:41.1]} 59... Kf7 {[%clk
0:00:08.9]} 60. Rf8+ {[%clk 0:01:41.6]} 60... Kxg7 {[%clk 0:00:10.4]} 61. Rxf5
{[%clk 0:01:43.5]} 61... Kg6 {[%clk 0:00:11.7]} 62. Rf8 {[%clk 0:01:44.9]} 62...
Rd6 {[%clk 0:00:11.5]} 63. Rb8 {[%clk 0:01:44]} 63... Ra6 {[%clk 0:00:11.9]} 64.
Rxb4 {[%clk 0:01:44.5]} 64... Rxa2 {[%clk 0:00:13.1]} 65. Kxd3 {[%clk
0:01:46.4]} 65... Kf5 {[%clk 0:00:14.6]} 66. Ke3 {[%clk 0:01:47.7]} 66... Ra1
{[%clk 0:00:15.3]} 67. Rb5+ {[%clk 0:01:49]} 67... Kf6 {[%clk 0:00:16.9]} 68. b4
{[%clk 0:01:48.9]} 68... Re1+ {[%clk 0:00:17.2]} 69. Kf2 {[%clk 0:01:49.9]}
69... Rb1 {[%clk 0:00:17.9]} 70. Kf3 {[%clk 0:01:50.9]} 70... Rf1+ {[%clk
0:00:17.3]} 71. Ke3 {[%clk 0:01:51.5]} 71... Re1+ {[%clk 0:00:18.6]} 72. Kf2
{[%clk 0:01:52.9]} 72... Rb1 {[%clk 0:00:20.2]} 73. Kg2 {[%clk 0:01:52.3]} 73...
Ke6 {[%clk 0:00:19.5]} 74. f5+ {[%clk 0:01:52.2]} 74... Kf6 {[%clk 0:00:20.7]}
75. Kf3 {[%clk 0:01:53.8]} 75... Rf1+ {[%clk 0:00:21.5]} 76. Ke4 {[%clk
0:01:55.4]} 76... Re1+ {[%clk 0:00:22.5]} 77. Kd4 {[%clk 0:01:57]} 77... Rd1+
{[%clk 0:00:23.8]} 78. Kc4 {[%clk 0:01:58]} 78... Rc1+ {[%clk 0:00:24.9]} 79.
Kb3 {[%clk 0:01:59.4]} 79... Rb1+ {[%clk 0:00:24.6]} 80. Kc2 {[%clk 0:02:00.5]}
80... Rh1 {[%clk 0:00:25.6]} 81. Rc5 {[%clk 0:02:01.4]} 81... Rh2+ {[%clk
0:00:25.6]} 82. Kb3 {[%clk 0:02:02.6]} 82... Rh3+ {[%clk 0:00:24.3]} 83. Ka4
{[%clk 0:02:03.8]} 83... Rh7 {[%clk 0:00:25.1]} 84. b5 {[%clk 0:02:04.9]} 84...
Rd7 {[%clk 0:00:23.8]} 85. b6 {[%clk 0:02:05.2]} 85... Rd1 {[%clk 0:00:23.8]}
86. Kb5 {[%clk 0:02:06.5]} 86... Rb1+ {[%clk 0:00:24.3]} 87. Kc6 {[%clk
0:02:08]} 87... Rb2 {[%clk 0:00:23.2]} 88. b7 {[%clk 0:02:07.8]} 88... Rb1
{[%clk 0:00:22]} 89. Kc7 {[%clk 0:02:09]} 89... Rh1 {[%clk 0:00:13.3]} 90. b8=Q
{[%clk 0:02:08.9]} 90... Rh7+ {[%clk 0:00:15.2]} 91. Kd6 {[%clk 0:02:07.7]}
91... Rh6 {[%clk 0:00:16.7]} 92. Qf8+ {[%clk 0:02:07]} 92... Kg5+ {[%clk
0:00:18.3]} 93. Qxh6+ {[%clk 0:02:08.3]} 93... Kxh6 {[%clk 0:00:20.2]} 94. Ke7
{[%clk 0:02:09.7]} 94... Kg7 {[%clk 0:00:22.1]} 95. f6+ {[%clk 0:02:10.8]} 95...
Kg8 {[%clk 0:00:23.8]} 96. Rg5+ {[%clk 0:02:10.4]} 96... Kh7 {[%clk 0:00:25.7]}
97. Rg1 {[%clk 0:02:11.4]} 97... Kh6 {[%clk 0:00:26.9]} 98. f7 {[%clk
0:02:12.7]} 98... Kh7 {[%clk 0:00:28.4]} 99. Rg2 {[%clk 0:02:13.9]} 99... Kh6
{[%clk 0:00:29.3]} 100. f8=Q+ {[%clk 0:02:15.3]} 100... Kh5 {[%clk 0:00:30.9]}
101. Qh8# {[%clk 0:02:16.3]} 1-0

[Event "*** Titled Tuesday 3|2 Blitz"]
[Site "Chess.com"]
[Date "2015.11.03"]
[Round "5"]
[White "NMJeevanK"]
[Black "Moltini"]
[Result "1-0"]
[WhiteElo "2228"]
[BlackElo "2184"]
[TimeControl "180+2"]
[EndTime "11:54:55 PST"]
[Termination "NMJeevanK won by resignation"]

1. e4 {[%clk 0:03:01.9]} 1... c5 {[%clk 0:03:00.6]} 2. Nf3 {[%clk 0:03:02.1]}
2... d6 {[%clk 0:03:01.5]} 3. c3 {[%clk 0:03:03.3]} 3... Nf6 {[%clk 0:03:01.7]}
4. Bd3 {[%clk 0:03:04.3]} 4... g6 {[%clk 0:03:02.4]} 5. Bc2 {[%clk 0:03:05.3]}
5... Bg7 {[%clk 0:03:03.7]} 6. O-O {[%clk 0:03:06.3]} 6... O-O {[%clk 0:03:05]}
7. d4 {[%clk 0:03:07.3]} 7... cxd4 {[%clk 0:03:04.3]} 8. cxd4 {[%clk 0:03:07.9]}
8... Bg4 {[%clk 0:03:05.3]} 9. h3 {[%clk 0:03:07.7]} 9... Bxf3 {[%clk
0:03:06.1]} 10. Qxf3 {[%clk 0:03:08]} 10... Nc6 {[%clk 0:03:07.6]} 11. Rd1
{[%clk 0:03:07]} 11... Rc8 {[%clk 0:03:07.4]} 12. Nc3 {[%clk 0:03:07.7]} 12...
Qb6 {[%clk 0:03:05.1]} 13. Qe3 {[%clk 0:02:49]} 13... e6 {[%clk 0:02:52.6]} 14.
a3 {[%clk 0:02:47.9]} 14... Nd7 {[%clk 0:02:47.1]} 15. d5 {[%clk 0:02:46.4]}
15... exd5 {[%clk 0:02:34.7]} 16. Nxd5 {[%clk 0:02:42.5]} 16... Qxe3 {[%clk
0:02:35.6]} 17. Bxe3 {[%clk 0:02:43]} 17... Nc5 {[%clk 0:02:36.7]} 18. b4 {[%clk
0:02:34.1]} 18... Ne6 {[%clk 0:02:32.6]} 19. b5 {[%clk 0:02:35.2]} 19... Bxa1
{[%clk 0:02:29.5]} 20. bxc6 {[%clk 0:02:35.4]} 20... Rxc6 {[%clk 0:02:28.4]} 21.
Ne7+ {[%clk 0:02:35.2]} 21... Kg7 {[%clk 0:02:29]} 22. Nxc6 {[%clk 0:02:37.1]}
22... bxc6 {[%clk 0:02:30]} 23. Rxa1 {[%clk 0:02:36.2]} 23... d5 {[%clk
0:02:31.1]} 24. exd5 {[%clk 0:02:36.7]} 24... cxd5 {[%clk 0:02:32.5]} 25. Bxa7
{[%clk 0:02:37]} 25... Rc8 {[%clk 0:02:32]} 26. Bb3 {[%clk 0:02:36.6]} 26... Nf4
{[%clk 0:02:32.8]} 27. Be3 {[%clk 0:02:34.3]} 27... Ne2+ {[%clk 0:02:30.8]} 28.
Kf1 {[%clk 0:02:35.5]} 28... Nc3 {[%clk 0:02:31.5]} 29. Bd4+ {[%clk 0:02:36.6]}
29... f6 {[%clk 0:02:31.9]} 30. Bxc3 {[%clk 0:02:38.5]} 30... Rxc3 {[%clk
0:02:32.5]} 31. Bxd5 {[%clk 0:02:40.4]} 1-0

[Event "*** Titled Tuesday 3|2 Blitz"]
[Site "Chess.com"]
[Date "2015.11.03"]
[Round "5"]
[White "ruifeng"]
[Black "jcgs1030"]
[Result "1-0"]
[WhiteElo "2157"]
[BlackElo "2101"]
[TimeControl "180+2"]
[EndTime "11:56:14 PST"]
[Termination "ruifeng won by resignation"]

1. e4 {[%clk 0:03:01.9]} 1... c5 {[%clk 0:03:00.6]} 2. Nf3 {[%clk 0:03:01.1]}
2... d6 {[%clk 0:03:00.7]} 3. d4 {[%clk 0:02:55.2]} 3... cxd4 {[%clk 0:03:01.9]}
4. Nxd4 {[%clk 0:02:56.4]} 4... Nf6 {[%clk 0:03:03.4]} 5. Nc3 {[%clk 0:02:57.4]}
5... g6 {[%clk 0:03:04.9]} 6. Be3 {[%clk 0:02:57.1]} 6... Bg7 {[%clk 0:03:06.3]}
7. Be2 {[%clk 0:02:58.5]} 7... O-O {[%clk 0:03:07.7]} 8. Qd2 {[%clk 0:02:59.5]}
8... Nc6 {[%clk 0:03:08.9]} 9. O-O-O {[%clk 0:02:59]} 9... Ng4 {[%clk
0:03:10.3]} 10. Bxg4 {[%clk 0:02:58.3]} 10... Bxg4 {[%clk 0:03:11.8]} 11. f3
{[%clk 0:02:59.6]} 11... Be6 {[%clk 0:03:13.2]} 12. Kb1 {[%clk 0:02:59.1]} 12...
Nxd4 {[%clk 0:03:13.7]} 13. Bxd4 {[%clk 0:02:59.7]} 13... Qc7 {[%clk 0:03:11.3]}
14. Bxg7 {[%clk 0:02:56]} 14... Kxg7 {[%clk 0:03:12.3]} 15. g4 {[%clk
0:02:57.1]} 15... Rfc8 {[%clk 0:03:11.4]} 16. h4 {[%clk 0:02:58]} 16... h6
{[%clk 0:03:12.7]} 17. Rhg1 {[%clk 0:02:51.6]} 17... Qa5 {[%clk 0:03:13.2]} 18.
a3 {[%clk 0:02:52.2]} 18... Rxc3 {[%clk 0:03:13.3]} 19. Qxc3+ {[%clk 0:02:50.2]}
19... Qxc3 {[%clk 0:03:14.7]} 20. bxc3 {[%clk 0:02:51.1]} 20... Rc8 {[%clk
0:03:16.6]} 21. Kb2 {[%clk 0:02:50.8]} 21... Rc5 {[%clk 0:03:14.6]} 22. Rd4
{[%clk 0:02:50.9]} 22... Kf6 {[%clk 0:03:15.1]} 23. f4 {[%clk 0:02:37]} 23... a5
{[%clk 0:03:06.6]} 24. g5+ {[%clk 0:02:33.3]} 24... Kg7 {[%clk 0:03:03.8]} 25.
Rg3 {[%clk 0:02:31.1]} 25... Rb5+ {[%clk 0:03:02.3]} 26. Kc1 {[%clk 0:02:31.6]}
26... Ba2 {[%clk 0:03:01.9]} 27. Kd2 {[%clk 0:02:27.9]} 27... Rb1 {[%clk
0:03:02.6]} 28. e5 {[%clk 0:02:16.2]} 28... d5 {[%clk 0:03:02.5]} 29. f5 {[%clk
0:01:38.3]} 29... gxf5 {[%clk 0:03:01.5]} 30. gxh6+ {[%clk 0:01:39.2]} 30...
Kxh6 {[%clk 0:03:01.8]} 31. Rg5 {[%clk 0:01:39.7]} 31... e6 {[%clk 0:03:00.6]}
32. Rd3 {[%clk 0:01:33.5]} 32... Rh1 {[%clk 0:02:59.4]} 33. Rdg3 {[%clk
0:01:32]} 33... Rh2+ {[%clk 0:02:55.2]} 34. Kc1 {[%clk 0:01:30]} 34... Rxh4
{[%clk 0:02:49.9]} 35. Rg8 {[%clk 0:01:30.8]} 35... Rg4 {[%clk 0:02:51.3]} 36.
Rh3+ {[%clk 0:01:28.8]} 1-0

[Event "*** Titled Tuesday 3|2 Blitz"]
[Site "Chess.com"]
[Date "2015.11.03"]
[Round "5"]
[White "spectralsoul"]
[Black "sorito"]
[Result "1-0"]
[WhiteElo "2478"]
[BlackElo "2082"]
[TimeControl "180+2"]
[EndTime "11:56:30 PST"]
[Termination "spectralsoul won by resignation"]

1. e4 {[%clk 0:03:01.9]} 1... d6 {[%clk 0:02:58.6]} 2. d4 {[%clk 0:03:01]} 2...
Nf6 {[%clk 0:02:59.2]} 3. Nc3 {[%clk 0:03:02.4]} 3... c6 {[%clk 0:02:59.9]} 4.
f4 {[%clk 0:02:59.5]} 4... Qa5 {[%clk 0:03:00.4]} 5. Bd2 {[%clk 0:02:49.5]} 5...
e5 {[%clk 0:02:58.3]} 6. Nf3 {[%clk 0:02:47.3]} 6... Bg4 {[%clk 0:02:57.6]} 7.
dxe5 {[%clk 0:02:12.6]} 7... dxe5 {[%clk 0:02:57.5]} 8. fxe5 {[%clk 0:02:08.6]}
8... Bxf3 {[%clk 0:02:49.3]} 9. Qxf3 {[%clk 0:02:10.5]} 9... Qxe5 {[%clk
0:02:50.3]} 10. O-O-O {[%clk 0:02:05.6]} 10... Bb4 {[%clk 0:02:46.7]} 11. Bf4
{[%clk 0:01:51.8]} 11... Qa5 {[%clk 0:02:44.4]} 12. e5 {[%clk 0:01:37.4]} 12...
Bxc3 {[%clk 0:02:45.2]} 13. exf6 {[%clk 0:01:38.4]} 13... Bxf6 {[%clk
0:02:31.5]} 14. Qe4+ {[%clk 0:01:39.1]} 14... Be7 {[%clk 0:02:06.3]} 15. Re1
{[%clk 0:01:29.8]} 15... Qd8 {[%clk 0:01:54.7]} 16. Bc4 {[%clk 0:01:21.9]} 16...
Nd7 {[%clk 0:01:55.1]} 17. Bd6 {[%clk 0:01:20.8]} 1-0

[Event "*** Titled Tuesday 3|2 Blitz"]
[Site "Chess.com"]
[Date "2015.11.03"]
[Round "5"]
[White "kikydu96"]
[Black "gmjlh"]
[Result "0-1"]
[WhiteElo "2257"]
[BlackElo "2619"]
[TimeControl "180+2"]
[EndTime "11:57:15 PST"]
[Termination "gmjlh won by resignation"]

1. b3 {[%clk 0:03:01.9]} 1... e5 {[%clk 0:02:59.3]} 2. Bb2 {[%clk 0:03:03]} 2...
Nc6 {[%clk 0:03:00.6]} 3. e3 {[%clk 0:03:04.5]} 3... Nge7 {[%clk 0:03:02.2]} 4.
Bb5 {[%clk 0:03:04.2]} 4... a6 {[%clk 0:03:03.1]} 5. Be2 {[%clk 0:03:02.5]} 5...
d5 {[%clk 0:03:02.9]} 6. Nf3 {[%clk 0:03:02.5]} 6... Ng6 {[%clk 0:03:04]} 7. d4
{[%clk 0:03:02.4]} 7... e4 {[%clk 0:03:03.5]} 8. Ne5 {[%clk 0:03:03.6]} 8...
Ncxe5 {[%clk 0:02:57.3]} 9. dxe5 {[%clk 0:03:04.7]} 9... Be6 {[%clk 0:02:48]}
10. O-O {[%clk 0:03:02.5]} 10... Be7 {[%clk 0:02:33.9]} 11. Nd2 {[%clk
0:03:00.3]} 11... O-O {[%clk 0:02:29.5]} 12. c4 {[%clk 0:03:01]} 12... c6 {[%clk
0:02:27.5]} 13. cxd5 {[%clk 0:02:59.5]} 13... cxd5 {[%clk 0:02:28.5]} 14. Rc1
{[%clk 0:02:59.7]} 14... Qb8 {[%clk 0:02:28.6]} 15. f4 {[%clk 0:02:58.2]} 15...
exf3 {[%clk 0:02:28.7]} 16. Nxf3 {[%clk 0:02:59.2]} 16... Rc8 {[%clk 0:02:23.4]}
17. Qd4 {[%clk 0:02:57.7]} 17... Rxc1 {[%clk 0:02:17.2]} 18. Rxc1 {[%clk
0:02:57.9]} 18... Qd8 {[%clk 0:02:18]} 19. Qd2 {[%clk 0:02:23.3]} 19... Rc8
{[%clk 0:02:16.2]} 20. Nd4 {[%clk 0:02:22]} 20... Rxc1+ {[%clk 0:02:08.4]} 21.
Qxc1 {[%clk 0:02:18.8]} 21... Bd7 {[%clk 0:02:02.9]} 22. Bf3 {[%clk 0:02:12.4]}
22... Nxe5 {[%clk 0:01:52]} 23. Bxd5 {[%clk 0:02:11.5]} 23... Nd3 {[%clk
0:01:47.5]} 24. Bxf7+ {[%clk 0:02:11.5]} 24... Kh8 {[%clk 0:01:48.4]} 25. Qd2
{[%clk 0:02:02.5]} 25... Nxb2 {[%clk 0:01:49]} 26. Qxb2 {[%clk 0:02:04.1]} 26...
Bg5 {[%clk 0:01:48.9]} 27. Qe2 {[%clk 0:01:42.7]} 27... Qe7 {[%clk 0:01:45.7]}
28. Bh5 {[%clk 0:01:43]} 28... Qxe3+ {[%clk 0:01:44]} 29. Kh1 {[%clk 0:01:35.6]}
29... Qxd4 {[%clk 0:01:42]} 30. h3 {[%clk 0:01:34.7]} 30... Bf4 {[%clk
0:01:31.2]} 0-1

[Event "*** Titled Tuesday 3|2 Blitz"]
[Site "Chess.com"]
[Date "2015.11.03"]
[Round "5"]
[White "metalbattler"]
[Black "Badouuu"]
[Result "1-0"]
[WhiteElo "1964"]
[BlackElo "1924"]
[TimeControl "180+2"]
[EndTime "11:57:53 PST"]
[Termination "metalbattler won by checkmate"]

1. e4 {[%clk 0:02:32.6]} 1... c5 {[%clk 0:02:35.6]} 2. Nc3 {[%clk 0:02:32.8]}
2... Nc6 {[%clk 0:02:33.3]} 3. Bb5 {[%clk 0:02:33.6]} 3... Nd4 {[%clk 0:02:33]}
4. Nf3 {[%clk 0:02:33.9]} 4... Nxb5 {[%clk 0:02:32.7]} 5. Nxb5 {[%clk
0:02:32.2]} 5... a6 {[%clk 0:02:34.3]} 6. Nc3 {[%clk 0:02:33.1]} 6... d6 {[%clk
0:02:34.5]} 7. d4 {[%clk 0:02:32.1]} 7... cxd4 {[%clk 0:02:35.2]} 8. Qxd4 {[%clk
0:02:33]} 8... g6 {[%clk 0:02:37.1]} 9. Qxh8 {[%clk 0:02:33.1]} 9... Nf6 {[%clk
0:02:37.1]} 10. Bh6 {[%clk 0:02:28.4]} 10... Nd7 {[%clk 0:02:36.1]} 11. Qxh7
{[%clk 0:02:19.1]} 11... Bxh6 {[%clk 0:02:30.8]} 12. Qxh6 {[%clk 0:02:16.8]}
12... Qb6 {[%clk 0:02:32.4]} 13. O-O {[%clk 0:02:09]} 13... Nf6 {[%clk
0:02:33.2]} 14. Nd5 {[%clk 0:02:04.6]} 14... Nxd5 {[%clk 0:02:32.3]} 15. exd5
{[%clk 0:02:05.4]} 15... Qxb2 {[%clk 0:02:34.2]} 16. Rab1 {[%clk 0:02:00.8]}
16... Qxa2 {[%clk 0:02:24.6]} 17. Qh8+ {[%clk 0:01:59.5]} 17... Kd7 {[%clk
0:02:22.3]} 18. Rfe1 {[%clk 0:01:16.1]} 18... Qxd5 {[%clk 0:02:16.7]} 19. Qf8
{[%clk 0:01:14.5]} 19... e5 {[%clk 0:02:15.6]} 20. Rbd1 {[%clk 0:01:11.8]} 20...
Qa2 {[%clk 0:02:00.5]} 21. Qxd6+ {[%clk 0:01:05.1]} 21... Ke8 {[%clk 0:01:57.3]}
22. Rxe5+ {[%clk 0:01:06]} 22... Be6 {[%clk 0:01:58.4]} 23. Ng5 {[%clk
0:00:58.2]} 23... Rc8 {[%clk 0:01:29.7]} 24. Nxe6 {[%clk 0:00:50.3]} 24... fxe6
{[%clk 0:01:31.6]} 25. Rxe6+ {[%clk 0:00:49.5]} 25... Kf7 {[%clk 0:01:32.4]} 26.
Re7+ {[%clk 0:00:44.9]} 26... Kg8 {[%clk 0:01:32.8]} 27. Qd8+ {[%clk 0:00:45.6]}
27... Rxd8 {[%clk 0:01:32.9]} 28. Rxd8# {[%clk 0:00:47.5]} 1-0

[Event "*** Titled Tuesday 3|2 Blitz"]
[Site "Chess.com"]
[Date "2015.11.03"]
[Round "5"]
[White "Malev212"]
[Black "Danirod"]
[Result "1-0"]
[WhiteElo "2222"]
[BlackElo "2407"]
[TimeControl "180+2"]
[EndTime "11:58:38 PST"]
[Termination "Malev212 won by resignation"]

1. e4 {[%clk 0:02:58.2]} 1... c5 {[%clk 0:03:00.8]} 2. Nf3 {[%clk 0:02:58.5]}
2... g6 {[%clk 0:03:01.8]} 3. c3 {[%clk 0:02:58.3]} 3... Bg7 {[%clk 0:03:02.1]}
4. d4 {[%clk 0:02:58.5]} 4... cxd4 {[%clk 0:03:03.4]} 5. cxd4 {[%clk 0:02:59.4]}
5... d5 {[%clk 0:03:04.6]} 6. e5 {[%clk 0:03:00.4]} 6... a6 {[%clk 0:03:05.2]}
7. h3 {[%clk 0:03:00.4]} 7... Nc6 {[%clk 0:03:06.3]} 8. Nc3 {[%clk 0:02:56.6]}
8... f6 {[%clk 0:03:04.7]} 9. exf6 {[%clk 0:02:51]} 9... Nxf6 {[%clk 0:03:06.3]}
10. Bd3 {[%clk 0:02:48.1]} 10... O-O {[%clk 0:03:07.2]} 11. O-O {[%clk
0:02:48.9]} 11... Nh5 {[%clk 0:03:04]} 12. Be3 {[%clk 0:02:23.7]} 12... Nf4
{[%clk 0:02:39.1]} 13. Bc2 {[%clk 0:02:24.7]} 13... Qd6 {[%clk 0:02:23.9]} 14.
Bxf4 {[%clk 0:02:22.2]} 14... Rxf4 {[%clk 0:02:24.4]} 15. Nxd5 {[%clk 0:02:23]}
15... Rxf3 {[%clk 0:02:21]} 16. Nb6 {[%clk 0:01:33.9]} 16... Rxh3 {[%clk
0:01:18.7]} 17. gxh3 {[%clk 0:01:19.8]} 17... Bxh3 {[%clk 0:01:06.5]} 18. Nxa8
{[%clk 0:01:12.7]} 18... Qf4 {[%clk 0:00:50.2]} 19. Qd3 {[%clk 0:01:01.3]} 19...
Bxd4 {[%clk 0:00:46.3]} 20. Qxh3 {[%clk 0:00:56.5]} 20... Ne5 {[%clk 0:00:47.1]}
21. Rad1 {[%clk 0:00:39.2]} 21... Nf3+ {[%clk 0:00:48.2]} 22. Kh1 {[%clk
0:00:39.1]} 22... e5 {[%clk 0:00:49.5]} 23. Bb3+ {[%clk 0:00:38.1]} 23... Kg7
{[%clk 0:00:50.6]} 24. Bd5 {[%clk 0:00:38.6]} 24... Ng5 {[%clk 0:00:51]} 25. Qg3
{[%clk 0:00:37]} 25... Qf6 {[%clk 0:00:48.9]} 26. f4 {[%clk 0:00:35.8]} 26...
Qd6 {[%clk 0:00:41.7]} 27. Bg2 {[%clk 0:00:30.9]} 1-0

[Event "*** Titled Tuesday 3|2 Blitz"]
[Site "Chess.com"]
[Date "2015.11.03"]
[Round "5"]
[White "LADIESGET2KNOWME"]
[Black "WanderingPuppet"]
[Result "1-0"]
[WhiteElo "2247"]
[BlackElo "2208"]
[TimeControl "180+2"]
[EndTime "11:58:50 PST"]
[Termination "LADIESGET2KNOWME won by checkmate"]

1. d4 {[%clk 0:03:01.9]} 1... Nf6 {[%clk 0:02:48.4]} 2. c4 {[%clk 0:03:03]} 2...
g6 {[%clk 0:02:49.5]} 3. Nc3 {[%clk 0:03:04]} 3... Bg7 {[%clk 0:02:51.1]} 4. e4
{[%clk 0:03:05.2]} 4... d6 {[%clk 0:02:52.8]} 5. Nf3 {[%clk 0:03:06.4]} 5... O-O
{[%clk 0:02:54.5]} 6. Be2 {[%clk 0:03:07.9]} 6... e5 {[%clk 0:02:56.1]} 7. O-O
{[%clk 0:03:09.1]} 7... Nc6 {[%clk 0:02:57.5]} 8. d5 {[%clk 0:03:08.9]} 8... Ne7
{[%clk 0:02:58.3]} 9. Ne1 {[%clk 0:03:10.5]} 9... Nd7 {[%clk 0:02:59.9]} 10. Be3
{[%clk 0:03:11.9]} 10... f5 {[%clk 0:03:01.5]} 11. f3 {[%clk 0:03:13.4]} 11...
f4 {[%clk 0:03:02.5]} 12. Bf2 {[%clk 0:03:15]} 12... g5 {[%clk 0:03:04.4]} 13.
Rc1 {[%clk 0:03:16.3]} 13... Ng6 {[%clk 0:03:06]} 14. c5 {[%clk 0:03:17.6]}
14... Nxc5 {[%clk 0:03:07.6]} 15. b4 {[%clk 0:03:18.9]} 15... Na6 {[%clk
0:03:08.9]} 16. Nb5 {[%clk 0:03:20.3]} 16... Bd7 {[%clk 0:03:03.8]} 17. a4
{[%clk 0:03:20.2]} 17... h5 {[%clk 0:03:03.5]} 18. Nd3 {[%clk 0:03:07.3]} 18...
Rf7 {[%clk 0:03:02.4]} 19. Nb2 {[%clk 0:03:06.8]} 19... Bf8 {[%clk 0:03:01.3]}
20. Nc4 {[%clk 0:03:05.1]} 20... Rg7 {[%clk 0:03:00.5]} 21. Na5 {[%clk 0:03:06]}
21... g4 {[%clk 0:02:34.9]} 22. fxg4 {[%clk 0:03:05.2]} 22... Qg5 {[%clk
0:02:31.2]} 23. h3 {[%clk 0:02:50.5]} 23... hxg4 {[%clk 0:02:22.5]} 24. Bxg4
{[%clk 0:02:44.5]} 24... f3 {[%clk 0:02:13.9]} 25. Qxf3 {[%clk 0:02:42.2]} 25...
Nf4 {[%clk 0:02:12.5]} 26. Bxd7 {[%clk 0:02:36.7]} 26... Rxd7 {[%clk 0:02:04.4]}
27. Be3 {[%clk 0:02:36]} 27... Rg7 {[%clk 0:01:49.2]} 28. Bxf4 {[%clk
0:02:35.9]} 28... exf4 {[%clk 0:01:49.1]} 29. Nxb7 {[%clk 0:02:29]} 29... Nxb4
{[%clk 0:01:43.6]} 30. Rxc7 {[%clk 0:02:26.3]} 30... Re8 {[%clk 0:01:25.2]} 31.
Rxg7+ {[%clk 0:02:23.3]} 31... Bxg7 {[%clk 0:01:25.9]} 32. N7xd6 {[%clk
0:02:19.6]} 32... Rb8 {[%clk 0:01:11]} 33. Qxf4 {[%clk 0:02:15.8]} 33... Qxf4
{[%clk 0:01:10.5]} 34. Rxf4 {[%clk 0:02:17.7]} 34... a6 {[%clk 0:01:11.9]} 35.
Nc7 {[%clk 0:02:17.3]} 35... Bd4+ {[%clk 0:00:57.7]} 36. Kf1 {[%clk 0:02:12.1]}
36... Nd3 {[%clk 0:00:49.5]} 37. Rg4+ {[%clk 0:02:11.5]} 37... Kh7 {[%clk
0:00:47.3]} 38. Ne6 {[%clk 0:02:06.8]} 38... Be5 {[%clk 0:00:37]} 39. Ke2 {[%clk
0:01:58.3]} 39... Rb3 {[%clk 0:00:22.2]} 40. Nf7 {[%clk 0:01:54.3]} 40... Nc1+
{[%clk 0:00:21.1]} 41. Kd1 {[%clk 0:01:54.3]} 41... Nd3 {[%clk 0:00:17.1]} 42.
Nf8# {[%clk 0:01:47.8]} 1-0